[Event "Schachsommer 2019"]
[Site "Dresden"]
[Date "2019.08.14"]
[Round "5.3"]
[White "Gajek, Radoslaw"]
[Black "Kambrath, Yannick"]
[Result "0-1"]
[ECO "D02"]
[WhiteElo "2423"]
[BlackElo "2344"]
[Annotator "NA"]
[PlyCount "88"]
[EventDate "2019.08.10"]
[EventType "swiss"]
[EventCountry "GER"]
[SourceTitle "playchess.com"]
[Source "ChessBase"]
[SourceQuality "1"]
[TimeControl "40/5400+30:1800+30"]

1. d4 {[%emt 1:30:28]} Nf6 {[%emt 1:30:19]} 2. Bf4 {[%emt 1:30:54]} d5 {[%emt 1:28:52]} 3. e3 {[%emt 1:29:51]} e6 {[%emt 1:29:09]} 4. Nf3 {[%emt 1:29:12]} c5 {[%emt 1:27:18]} 5. c3 {[%emt 1:29:35]} Bd6 {[%emt 1:27:39]} 6. Bb5+ {[%emt 1:28:12]} Nc6 {[%emt 1:25:58]} 7. Ne5 {[%emt 1:20:14]} Qc7 {[%emt 1:20:44]} 8. Qa4 {[%emt 1:21:07]} Bd7 {[%emt 1:08:01]} 9. Nxd7 {[%emt 1:00:36]} Nxd7 {[%emt 1:11:36]} 10. Bg3 {[%emt 1:00:09]} O-O {[%emt 1:00:39]} 11. Nd2 {[%emt 0:59:37]} a6 {[%emt 0:56:23]} 12. Bxc6 {[%emt 0:54:07]} bxc6 {[%emt 0:56:48]} 13. Qa3 {[%emt 0:42:00]} Bxg3 {[%emt 0:51:18]} 14. hxg3 {[%emt 0:40:00]} Qb6 {[%emt 0:50:35]} 15. Nb3 {[%emt 0:32:46]} a5 {[%emt 0:36:58]} 16. Nxc5 {[%emt 0:28:40]} Nxc5 {[%emt 0:37:16]} 17. dxc5 {[%emt 0:28:58]} Qb5 {[%emt 0:35:55]} 18. Rh4 {[%emt 0:36:25]} Rfb8 {[%emt 0:27:15]} 19. b3 {[%emt 0:25:37]} Qd3 {[%emt 0:26:42]} 20. Rc1 {[%emt 0:27:12]} e5 {[%emt 0:23:46]} 21. Ra4 {[%emt 0:20:54]} Qa6 {[%emt 0:18:22]} 22. c4 {[%emt 0:17:01]} d4 {[%emt 0:18:22]} 23. exd4 {[%emt 0:18:52]} exd4 {[%emt 0:18:35]} 24. Kf1 {[%emt 0:16:20]} Re8 {[%emt 0:17:10]} 25. Rd1 {[%emt 0:14:31]} Rad8 {[%emt 0:14:55]} 26. Qb2 {[%emt 0:11:32]} d3 {[%emt 0:14:06]} 27. Qc3 {[%emt 0:14:36]} Qc8 {[%emt 0:14:21]} 28. Kg1 {[%emt 0:06:22]} Qg4 {[%emt 0:11:36]} 29. Qd2 {[%emt 0:03:23]} Re2 {[%emt 0:10:57]} 30. Qf4 {[%emt 0:11:27]} Qxf4 {[%emt 0:10:44]} 31. gxf4 {[%emt 0:01:56]} d2 {[%emt 0:11:08]} 32. Kh2 {[%emt 0:02:24]} Re1 {[%emt 0:10:37]} 33. Rxd2 {[%emt 0:02:51]} Rxd2 {[%emt 0:11:02]} 34. Rxa5 {[%emt 0:03:19]} h5 {[%emt 0:03:49]} 35. b4 {[%emt 0:01:54]} Rc1 {[%emt 0:06:36]} 36. b5 {[%emt 0:00:11]} cxb5 {[%emt 0:06:49]} 37. cxb5 {[%emt 0:00:36]} Rxc5 {[%emt 0:07:13]} 38. Ra8+ {[%emt 0:00:46]} Kh7 {[%emt 0:07:38]} 39. a4 {[%emt 0:01:10]} Rb2 {[%emt 0:06:55]} 40. Ra6 {[%emt 0:00:32]} Rc4 {[%emt 0:04:52]} 41. b6 {[%emt 0:00:09]} Rxf4 {[%emt 0:04:32]} 42. a5 {[%emt 0:00:17]} Rfxf2 {[%emt 0:04:37]} 43. Ra7 {[%emt 0:00:35]} Rxg2+ {[%emt 0:04:48]} 44. Kh3 {[%emt 0:01:03]} Rg5 {[%emt 0:03:14]} 0-1

[Event "Schachsommer 2019"]
[Site "Dresden"]
[Date "2019.08.14"]
[Round "5.4"]
[White "Mirimanian, Hayk"]
[Black "Dann, Matthias"]
[Result "1/2-1/2"]
[ECO "B91"]
[WhiteElo "2240"]
[BlackElo "2527"]
[Annotator "ChessBase"]
[PlyCount "139"]
[EventDate "2019.08.10"]
[EventType "swiss"]
[EventCountry "GER"]
[SourceTitle "playchess.com"]
[Source "ChessBase"]
[SourceQuality "1"]
[TimeControl "40/5400+30:1800+30"]

1. e4 {[%emt 1:30:08]} d6 {[%emt 1:30:23]} 2. Nc3 {[%emt 1:25:14]} c5 {[%emt 1:30:28]} 3. Nf3 {[%emt 1:30:58]} Nf6 {[%emt 1:30:52]} 4. d4 {[%emt 1:25:49]} cxd4 {[%emt 1:31:16]} 5. Nxd4 {[%emt 1:26:15]} a6 {[%emt 1:31:01]} 6. g3 {[%emt 1:24:16]} g6 {[%emt 1:30:25]} 7. Bg2 {[%emt 1:24:31]} Bg4 {[%emt 1:30:20]} 8. Nce2 {[%emt 1:30:50]} Bg7 {[%emt 1:21:33]} 9. h3 {[%emt 1:21:19]} Bd7 {[%emt 1:21:49]} 10. O-O {[%emt 1:21:33]} Nc6 {[%emt 1:29:53]} 11. Be3 {[%emt 1:17:51]} Rc8 {[%emt 1:27:35]} 12. Qd2 {[%emt 1:28:05]} O-O {[%emt 1:16:19]} 13. g4 {[%emt 1:27:40]} Qc7 {[%emt 1:22:29]} 14. Rac1 {[%emt 1:00:19]} b5 {[%emt 1:19:00]} 15. b3 {[%emt 0:50:16]} e5 {[%emt 1:08:57]} 16. Nxc6 {[%emt 0:49:40]} Bxc6 {[%emt 1:09:24]} 17. Ng3 {[%emt 0:37:14]} Qb7 {[%emt 1:09:49]} 18. Qd3 {[%emt 0:35:42]} d5 {[%emt 1:09:54]} 19. exd5 {[%emt 0:34:08]} Nxd5 {[%emt 1:05:38]} 20. c4 {[%emt 0:34:12]} Nf4 {[%emt 0:53:22]} 21. Bxc6 {[%emt 0:34:19]} Rxc6 {[%emt 0:53:39]} 22. Qe4 {[%emt 0:30:01]} f5 {[%emt 0:45:01]} 23. Qh1 {[%emt 0:29:46]} Qd7 {[%emt 0:45:26]} 24. Rcd1 {[%emt 0:18:35]} Qc8 {[%emt 0:42:11]} 25. cxb5 {[%emt 0:17:38]} axb5 {[%emt 0:18:08]} 26. gxf5 {[%emt 0:17:38]} Kh8 {[%emt 0:38:01]} 27. Bxf4 {[%emt 0:15:16]} exf4 {[%emt 0:38:24]} 28. f6 {[%emt 0:15:36]} Rcxf6 {[%emt 0:34:40]} 29. Ne4 {[%emt 0:15:38]} Ra6 {[%emt 0:16:08]} 30. Qf3 {[%emt 0:14:47]} Rxa2 {[%emt 0:35:20]} 31. Rd5 {[%emt 0:13:28]} b4 {[%emt 0:30:23]} 32. Rfd1 {[%emt 0:13:20]} Ra7 {[%emt 0:30:10]} 33. Rb5 {[%emt 0:10:58]} Bc3 {[%emt 0:11:28]} 34. Rd3 {[%emt 0:08:53]} Rc7 {[%emt 0:24:21]} 35. Rbd5 {[%emt 0:24:51]} Qe6 {[%emt 0:20:26]} 36. Kh2 {[%emt 0:06:53]} Bg7 {[%emt 0:07:23]} 37. Ng5 {[%emt 0:01:30]} Qe7 {[%emt 0:20:33]} 38. Ne4 {[%emt 0:01:37]} h6 {[%emt 0:20:04]} 39. Rd6 {[%emt 0:01:11]} Re8 {[%emt 0:20:00]} 40. Nd2 {[%emt 0:01:30]} Kh7 {[%emt 0:08:04]} 41. Nc4 {[%emt 0:25:50]} g5 {[%emt 0:26:20]} 42. Rb6 {[%emt 0:26:28]} Qe2 {[%emt 0:21:10]} 43. Rxb4 {[%emt 0:17:30]} Qxf3 {[%emt 3:59:00]} 44. Rxf3 {[%emt 1:29:56]} Re2 {[%emt 0:18:25]} 45. Kg2 {[%emt 0:17:44]} Bd4 {[%emt 0:19:05]} 46. Nd6 {[%emt 0:14:57]} Ba7 {[%emt 0:15:08]} 47. Re4 {[%emt 0:15:09]} Rcc2 {[%emt 0:15:15]} 48. Rxe2 {[%emt 0:14:53]} Rxe2 {[%emt 0:15:41]} 49. Kf1 {[%emt 0:16:11]} Ra2 {[%emt 0:12:32]} 50. Nb5 {[%emt 0:13:23]} Bb6 {[%emt 0:12:26]} 51. Nc3 {[%emt 0:13:43]} Ra1+ {[%emt 0:07:54]} 52. Ke2 {[%emt 0:12:52]} Kg6 {[%emt 0:08:20]} 53. Rd3 {[%emt 0:10:24]} Kf5 {[%emt 0:08:22]} 54. Kf3 {[%emt 0:08:52]} Rh1 {[%emt 0:08:31]} 55. Kg2 {[%emt 0:07:19]} Rc1 {[%emt 0:07:49]} 56. Kf3 {[%emt 0:07:30]} h5 {[%emt 0:07:36]} 57. Rd5+ {[%emt 0:06:22]} Ke6 {[%emt 0:08:01]} 58. Rd3 {[%emt 0:06:21]} Rc2 {[%emt 0:04:35]} 59. Ne4 {[%emt 0:06:17]} Ke5 {[%emt 0:04:54]} 60. Rd2 {[%emt 0:05:24]} g4+ {[%emt 0:05:03]} 61. hxg4 {[%emt 0:06:12]} hxg4+ {[%emt 0:05:28]} 62. Kxg4 {[%emt 0:06:36]} Rxd2 {[%emt 0:05:55]} 63. Nxd2 {[%emt 0:07:00]} Bxf2 {[%emt 0:06:22]} 64. Kf3 {[%emt 0:07:20]} Be3 {[%emt 0:06:39]} 65. Ne4 {[%emt 0:07:06]} Kd5 {[%emt 0:06:58]} 66. Nf6+ {[%emt 0:07:25]} Kc5 {[%emt 0:07:23]} 67. Nh5 {[%emt 0:07:52]} Kb4 {[%emt 0:07:50]} 68. Nxf4 {[%emt 0:08:19]} Bxf4 {[%emt 0:08:16]} 69. Kxf4 {[%emt 0:08:46]} Kxb3 {[%emt 0:08:41]} 70. Ke4 1/2-1/2

[Event "Schachsommer 2019"]
[Site "Dresden"]
[Date "2019.08.14"]
[Round "5.5"]
[White "Dietz, Kristin"]
[Black "Mkrtchian, Lilit"]
[Result "0-1"]
[ECO "E94"]
[WhiteElo "1904"]
[BlackElo "2395"]
[Annotator "NA"]
[PlyCount "82"]
[EventDate "2019.08.10"]
[EventType "swiss"]
[EventCountry "GER"]
[SourceTitle "playchess.com"]
[Source "ChessBase"]
[SourceQuality "1"]
[TimeControl "40/5400+30:1800+30"]

1. e4 {[%emt 1:30:27]} c6 {[%emt 1:30:03]} 2. c4 {[%emt 1:30:30]} e5 {[%emt 1:28:40]} 3. Nf3 {[%emt 1:29:10]} d6 {[%emt 1:28:57]} 4. d4 {[%emt 1:30:04]} Nd7 {[%emt 1:26:09]} 5. Be2 {[%emt 1:29:42]} Ngf6 {[%emt 1:25:00]} 6. Nc3 {[%emt 1:29:50]} g6 {[%emt 1:24:11]} 7. O-O {[%emt 1:29:09]} Bg7 {[%emt 1:24:33]} 8. Be3 {[%emt 1:26:04]} O-O {[%emt 1:24:05]} 9. Qc2 {[%emt 1:23:57]} exd4 {[%emt 1:03:18]} 10. Nxd4 {[%emt 1:21:31]} Qe7 {[%emt 1:03:29]} 11. Nb3 {[%emt 1:09:00]} Re8 {[%emt 0:56:51]} 12. Bd3 {[%emt 1:07:38]} Ne5 {[%emt 0:49:28]} 13. Bg5 {[%emt 0:49:58]} Qe6 {[%emt 1:02:24]} 14. Nd2 {[%emt 0:59:18]} h6 {[%emt 0:29:47]} 15. Bh4 {[%emt 0:30:17]} Qg4 {[%emt 0:25:49]} 16. Bg3 {[%emt 0:26:19]} Qe6 {[%emt 0:25:37]} 17. Rae1 {[%emt 0:55:15]} Nh5 {[%emt 0:25:46]} 18. f4 Nxg3 {[%emt 0:25:32]} 19. hxg3 {[%emt 0:47:53]} Ng4 {[%emt 0:25:33]} 20. Nf3 {[%emt 0:47:52]} Qe7 {[%emt 0:24:06]} 21. f5 {[%emt 0:35:23]} Be5 {[%emt 0:18:10]} 22. Nxe5 {[%emt 0:29:58]} Qxe5 {[%emt 0:18:28]} 23. Rf3 {[%emt 0:26:50]} Bxf5 {[%emt 0:17:20]} 24. Qe2 {[%emt 0:22:11]} Qc5+ {[%emt 0:22:41]} 25. Kh1 {[%emt 0:21:43]} Bxe4 {[%emt 0:12:01]} 26. Qxe4 {[%emt 0:20:27]} Rxe4 {[%emt 0:09:20]} 27. Bxe4 {[%emt 0:09:50]} Qh5+ {[%emt 0:21:03]} 28. Kg1 {[%emt 0:20:58]} Qh2+ {[%emt 0:10:08]} 29. Kf1 {[%emt 0:21:18]} Qh1+ {[%emt 0:10:30]} 30. Ke2 {[%emt 0:21:42]} Qxg2+ {[%emt 0:10:57]} 31. Kd1 {[%emt 0:21:30]} Nf2+ {[%emt 0:11:06]} 32. Kc1 {[%emt 0:21:25]} Nxe4 {[%emt 0:11:25]} 33. Rfe3 {[%emt 0:21:35]} Qd2+ {[%emt 0:11:02]} 34. Kb1 {[%emt 0:21:57]} Nxc3+ {[%emt 0:11:27]} 35. bxc3 {[%emt 0:22:19]} a5 {[%emt 0:11:36]} 36. R1e2 {[%emt 0:22:09]} Qd1+ {[%emt 0:12:00]} 37. Kb2 {[%emt 0:22:35]} Ra6 {[%emt 0:11:52]} 38. g4 {[%emt 0:21:05]} a4 {[%emt 0:12:03]} 39. Re8+ {[%emt 0:20:59]} Kg7 {[%emt 0:12:29]} 40. Ka3 {[%emt 0:12:59]} Qc1+ {[%emt 0:12:43]} 41. Rb2 {[%emt 0:21:24]} Qxc3+ {[%emt 0:21:54] --- Bc8# --- Ra8# --- Bh2#} 0-1

[Event "Schachsommer 2019"]
[Site "Dresden"]
[Date "2019.08.15"]
[Round "7.2"]
[White "Kambrath, Yannick"]
[Black "Dann, Matthias"]
[Result "1/2-1/2"]
[ECO "E18"]
[WhiteElo "2344"]
[BlackElo "2527"]
[Annotator "ChessBase"]
[PlyCount "87"]
[EventDate "2019.08.10"]
[EventType "swiss"]
[EventCountry "GER"]
[SourceTitle "playchess.com"]
[Source "ChessBase"]
[SourceQuality "1"]
[TimeControl "40/5400+30:1800+30"]

1. d4 {[%emt 1:30:28]} Nf6 {[%emt 1:30:20]} 2. Nf3 {[%emt 1:30:53]} e6 {[%emt 1:30:40]} 3. c4 {[%emt 1:30:34]} b6 {[%emt 1:31:04]} 4. g3 {[%emt 1:31:34]} Bb7 {[%emt 1:29:31]} 5. Bg2 {[%emt 1:31:09]} Be7 {[%emt 1:29:54]} 6. O-O {[%emt 1:31:34]} O-O {[%emt 1:30:20]} 7. Nc3 {[%emt 1:32:01]} Ne4 {[%emt 1:30:44]} 8. Bd2 {[%emt 1:32:27]} d5 {[%emt 1:31:07]} 9. Qc2 {[%emt 1:26:09]} Nd7 {[%emt 1:26:39]} 10. cxd5 {[%emt 1:22:48]} exd5 {[%emt 1:27:20]} 11. Bf4 {[%emt 1:14:51]} c5 {[%emt 1:21:31]} 12. Rfd1 {[%emt 1:22:01]} Rc8 {[%emt 1:17:34]} 13. dxc5 {[%emt 1:04:37]} Ndxc5 {[%emt 1:12:37]} 14. Nxe4 {[%emt 0:58:18]} Nxe4 {[%emt 1:13:00]} 15. Qb3 {[%emt 0:58:11]} Nc5 {[%emt 1:06:49]} 16. Qc2 {[%emt 0:57:19]} Ne6 {[%emt 1:01:57]} 17. Qd2 {[%emt 0:52:36]} Nxf4 {[%emt 0:58:18]} 18. gxf4 {[%emt 0:48:52]} Bf6 {[%emt 0:55:38]} 19. Ne5 {[%emt 0:56:08]} Bxe5 {[%emt 0:40:41]} 20. fxe5 {[%emt 0:34:54]} Qe7 {[%emt 0:41:08]} 21. f4 {[%emt 0:29:47]} Rcd8 {[%emt 0:41:34]} 22. Rac1 {[%emt 0:28:21]} f6 {[%emt 0:41:42]} 23. Qd4 {[%emt 0:27:49]} fxe5 {[%emt 0:42:07]} 24. Qxe5 {[%emt 0:28:05]} Qxe5 {[%emt 0:33:38]} 25. fxe5 {[%emt 0:28:34]} Rd7 {[%emt 0:34:01]} 26. e6 {[%emt 0:20:26]} Re7 {[%emt 0:34:25]} 27. Bxd5 {[%emt 0:34:25]} Bxd5 {[%emt 0:20:56]} 28. Rxd5 {[%emt 0:20:53]} Rxe6 {[%emt 0:35:11]} 29. Rd7 {[%emt 0:21:11]} a5 {[%emt 0:33:20]} 30. Rc3 {[%emt 0:17:15]} h6 {[%emt 0:31:14]} 31. a4 {[%emt 0:11:47]} Rf4 {[%emt 0:29:01]} 32. Rg3 {[%emt 0:05:47]} Rf7 {[%emt 0:29:03]} 33. Rxf7 {[%emt 0:05:49]} Kxf7 {[%emt 0:29:29]} 34. Kf2 {[%emt 0:05:40]} Re4 {[%emt 0:06:10]} 35. Rb3 {[%emt 0:05:37]} Rb4 {[%emt 0:27:33]} 36. Rxb4 {[%emt 0:03:37]} axb4 {[%emt 0:27:59]} 37. Kf3 {[%emt 0:03:39]} g5 {[%emt 0:27:59]} 38. Ke4 {[%emt 0:03:22]} Ke6 {[%emt 0:27:53]} 39. Kd4 {[%emt 0:01:32]} h5 {[%emt 0:27:15]} 40. Ke4 {[%emt 0:01:46]} b3 {[%emt 0:24:08]} 41. Kd4 {[%emt 0:26:21]} Kd6 {[%emt 0:26:51]} 42. Ke4 {[%emt 0:45:21]} Ke6 {[%emt 0:45:18]} 43. Kd4 {[%emt 0:26:50]} Kd6 {[%emt 0:27:20]} 44. Ke4 {[%emt 0:45:26]} 1/2-1/2

[Event "Schachsommer 2019"]
[Site "Dresden"]
[Date "2019.08.15"]
[Round "7.3"]
[White "Efimenko, Zahar"]
[Black "Herbrig, Alexander"]
[Result "1-0"]
[ECO "E14"]
[WhiteElo "2608"]
[BlackElo "2291"]
[Annotator "ChessBase"]
[PlyCount "71"]
[EventDate "2019.08.10"]
[EventType "swiss"]
[EventCountry "GER"]
[SourceTitle "playchess.com"]
[Source "ChessBase"]
[SourceQuality "1"]
[TimeControl "40/5400+30:1800+30"]

1. d4 {[%emt 1:29:45]} Nf6 {[%emt 1:30:18]} 2. Nf3 {[%emt 1:30:48]} e6 {[%emt 1:30:27]} 3. e3 {[%emt 1:30:03]} b6 {[%emt 1:29:44]} 4. Bd3 {[%emt 1:30:14]} Bb7 {[%emt 1:30:02]} 5. O-O {[%emt 1:30:32]} Be7 {[%emt 1:28:49]} 6. c4 {[%emt 1:30:32]} O-O {[%emt 1:27:40]} 7. Nc3 {[%emt 1:30:16]} d5 {[%emt 1:22:53]} 8. cxd5 {[%emt 1:30:27]} Nxd5 {[%emt 1:21:16]} 9. Nxd5 {[%emt 1:19:27]} Bxd5 {[%emt 1:14:14]} 10. e4 {[%emt 1:19:21]} Bb7 {[%emt 1:13:57]} 11. Bf4 {[%emt 1:18:51]} c5 {[%emt 0:57:43]} 12. dxc5 {[%emt 1:10:47]} Bxc5 {[%emt 0:57:45]} 13. a3 {[%emt 1:05:32]} a5 {[%emt 0:35:53]} 14. e5 {[%emt 0:36:23]} Ba6 {[%emt 0:32:38]} 15. Bxa6 {[%emt 0:50:00]} Nxa6 {[%emt 0:32:01]} 16. Qc2 {[%emt 0:46:36]} h6 {[%emt 0:30:56]} 17. Rad1 {[%emt 0:42:51]} Qc7 {[%emt 0:29:53]} 18. Qe2 {[%emt 0:30:23]} Qb7 {[%emt 0:24:48]} 19. Nd2 {[%emt 0:33:26]} Be7 {[%emt 0:22:16]} 20. Ne4 {[%emt 0:30:07]} Nc5 {[%emt 0:17:46]} 21. Nd6 {[%emt 0:18:16]} Bxd6 {[%emt 0:17:09]} 22. exd6 {[%emt 0:17:39]} a4 {[%emt 0:13:56]} 23. Rfe1 {[%emt 0:24:58]} Rad8 {[%emt 0:10:39]} 24. h4 {[%emt 0:23:51]} Kh8 {[%emt 0:08:41]} 25. Qb5 {[%emt 0:18:29]} Rd7 {[%emt 0:07:05]} 26. Rd4 {[%emt 0:07:35]} Rfd8 {[%emt 0:04:58]} 27. h5 {[%emt 0:05:28]} f6 {[%emt 0:05:01]} 28. Be3 {[%emt 0:12:36]} e5 {[%emt 0:04:28]} 29. Rdd1 {[%emt 0:11:40]} Ne4 {[%emt 0:03:55]} 30. Qxb6 {[%emt 0:09:59]} Qa8 {[%emt 0:04:24]} 31. Qb4 {[%emt 0:09:41]} Rxd6 {[%emt 0:03:20]} 32. Rxd6 {[%emt 0:10:01]} Nxd6 {[%emt 0:02:01]} 33. Bb6 {[%emt 0:09:59]} Rd7 {[%emt 0:02:25]} 34. Rd1 {[%emt 0:09:45]} Qc6 {[%emt 0:02:51]} 35. Qc5 {[%emt 0:08:31]} Rc7 {[%emt 0:01:51]} 36. Qxd6 {[%emt 0:02:21]} 1-0

[Event "Schachsommer 2019"]
[Site "Dresden"]
[Date "2019.08.15"]
[Round "7.4"]
[White "Siedentopf, Daniel"]
[Black "Mkrtchian, Lilit"]
[Result "0-1"]
[ECO "E20"]
[WhiteElo "2294"]
[BlackElo "2395"]
[Annotator "NA"]
[PlyCount "82"]
[EventDate "2019.08.10"]
[EventType "swiss"]
[EventCountry "GER"]
[SourceTitle "playchess.com"]
[Source "ChessBase"]
[SourceQuality "1"]
[TimeControl "40/5400+30:1800+30"]

1. d4 {[%emt 1:30:26]} Nf6 {[%emt 1:30:09]} 2. c4 {[%emt 1:30:51]} e6 {[%emt 1:30:29]} 3. Nc3 {[%emt 1:31:15]} Bb4 {[%emt 1:30:40]} 4. f3 {[%emt 1:31:38]} c5 {[%emt 1:27:37]} 5. d5 {[%emt 1:31:55]} O-O {[%emt 1:27:19]} 6. e4 {[%emt 1:32:14]} Re8 {[%emt 1:26:56]} 7. Nge2 {[%emt 1:31:54]} exd5 {[%emt 1:27:00]} 8. cxd5 {[%emt 1:32:14]} d6 {[%emt 1:32:44]} 9. Ng3 {[%emt 1:32:15]} Nbd7 {[%emt 1:26:37]} 10. Be2 {[%emt 1:31:52]} a6 {[%emt 1:26:48]} 11. O-O {[%emt 1:31:24]} Ba5 {[%emt 1:18:43]} 12. Kh1 {[%emt 1:29:15]} Rb8 {[%emt 1:17:30]} 13. Qc2 {[%emt 1:16:06]} Qc7 {[%emt 1:03:13]} 14. Nd1 {[%emt 1:03:43]} b5 {[%emt 0:57:26]} 15. Ne3 {[%emt 0:57:11]} c4 {[%emt 0:48:37]} 16. Nef5 {[%emt 0:53:23]} Ne5 {[%emt 0:46:34]} 17. Bg5 {[%emt 0:52:20]} Bxf5 {[%emt 0:46:25]} 18. Nxf5 {[%emt 0:47:21]} Nfd7 {[%emt 0:43:57]} 19. Ne7+ {[%emt 0:40:24]} Rxe7 {[%emt 0:40:36]} 20. Bxe7 {[%emt 0:40:11]} f6 {[%emt 0:40:41]} 21. a4 {[%emt 0:38:00]} Bb6 {[%emt 0:25:46]} 22. axb5 {[%emt 0:14:14]} axb5 {[%emt 0:14:44]} 23. b3 {[%emt 0:14:34]} Ng6 {[%emt 0:21:33]} 24. bxc4 {[%emt 0:14:51]} Nxe7 {[%emt 0:14:19]} 25. Qb3 {[%emt 0:14:57]} b4 {[%emt 0:14:24]} 26. Qxb4 {[%emt 0:14:06]} Bd4 {[%emt 0:13:46]} 27. Qa5 {[%emt 0:14:17]} Qxa5 {[%emt 0:13:17]} 28. Rxa5 {[%emt 0:14:42]} Rb2 {[%emt 0:13:44]} 29. Bd1 {[%emt 0:14:14]} Ne5 {[%emt 0:14:00]} 30. Ra8+ {[%emt 0:06:58]} Kf7 {[%emt 0:12:12]} 31. Ba4 {[%emt 0:06:13]} g5 {[%emt 0:11:02]} 32. h4 {[%emt 0:03:47]} gxh4 {[%emt 0:05:05]} 33. f4 {[%emt 0:03:12]} Nd3 {[%emt 0:03:25]} 34. Kh2 {[%emt 0:01:21]} Nxf4 {[%emt 0:03:11]} 35. Rxf4 {[%emt 0:00:25]} Be5 {[%emt 0:03:37]} 36. Kh3 {[%emt 0:00:28]} Bxf4 {[%emt 0:04:01]} 37. Be8+ {[%emt 0:00:55]} Kg7 {[%emt 0:01:25]} 38. Ra7 {[%emt 0:00:59]} Kf8 {[%emt 0:04:04]} 39. Ra8 {[%emt 0:01:17]} Be3 {[%emt 0:01:32]} 40. Bb5+ {[%emt 0:00:22]} Kg7 {[%emt 0:01:18]} 41. Rd8 {[%emt 0:27:45]} Ng6 {[%emt 0:23:44]} 0-1

[Event "Schachsommer 2019"]
[Site "Dresden"]
[Date "2019.08.15"]
[Round "7.5"]
[White "Gajek, Radoslaw"]
[Black "Efimenko, Maria"]
[Result "0-1"]
[ECO "B06"]
[WhiteElo "2423"]
[BlackElo "2239"]
[Annotator "NA"]
[PlyCount "134"]
[EventDate "2019.08.10"]
[EventType "swiss"]
[EventCountry "GER"]
[SourceTitle "playchess.com"]
[Source "ChessBase"]
[SourceQuality "1"]
[TimeControl "40/5400+30:1800+30"]

1. e4 {[%emt 1:30:26]} g6 {[%emt 1:30:23]} 2. d4 {[%emt 1:30:45]} d6 {[%emt 1:30:41]} 3. Nc3 {[%emt 1:31:02]} Bg7 {[%emt 1:31:01]} 4. f4 {[%emt 1:31:07]} Nc6 {[%emt 1:31:14]} 5. d5 {[%emt 1:27:09]} Nd4 {[%emt 1:31:24]} 6. Be3 {[%emt 1:26:30]} c5 {[%emt 1:31:38]} 7. dxc6 {[%emt 1:25:25]} Nxc6 {[%emt 1:32:01]} 8. Bc4 {[%emt 1:22:52]} Nf6 {[%emt 1:32:08]} 9. Nf3 {[%emt 1:14:08]} O-O {[%emt 1:31:41]} 10. Qe2 {[%emt 1:10:23]} a6 {[%emt 1:23:01]} 11. O-O-O {[%emt 1:23:31]} b5 {[%emt 1:18:56]} 12. Bb3 {[%emt 1:19:26]} Na5 {[%emt 1:05:20]} 13. e5 {[%emt 1:05:50]} Nxb3+ {[%emt 1:05:45]} 14. axb3 {[%emt 0:54:59]} Ng4 {[%emt 0:56:41]} 15. Bd4 {[%emt 0:54:00]} dxe5 {[%emt 0:50:36]} 16. Nxe5 {[%emt 0:51:17]} Nxe5 {[%emt 0:50:47]} 17. Bxe5 {[%emt 0:51:17]} Qa5 {[%emt 0:50:30]} 18. Bxg7 {[%emt 0:40:49]} Kxg7 {[%emt 0:50:58]} 19. Qe5+ {[%emt 0:40:54]} f6 {[%emt 0:49:56]} 20. Qxe7+ {[%emt 0:41:15]} Rf7 {[%emt 0:50:25]} 21. Qa3 {[%emt 0:41:26]} Qb6 {[%emt 0:50:19]} 22. Nd5 {[%emt 0:41:13]} Qc6 {[%emt 0:47:55]} 23. Rhe1 {[%emt 0:33:57]} Bg4 {[%emt 0:34:27]} 24. Rd2 {[%emt 0:32:58]} a5 {[%emt 0:42:48]} 25. h3 {[%emt 0:23:31]} Bd7 {[%emt 0:24:01]} 26. Kb1 {[%emt 0:09:36]} b4 {[%emt 0:35:04]} 27. Qa2 {[%emt 0:10:03]} Be6 {[%emt 0:30:15]} 28. Red1 {[%emt 0:09:02]} Rd7 {[%emt 0:29:12]} 29. c4 {[%emt 0:07:14]} bxc3 {[%emt 0:29:38]} 30. Nxc3 {[%emt 0:07:38]} Rxd2 {[%emt 0:29:38]} 31. Rxd2 {[%emt 0:08:05]} a4 {[%emt 0:29:45]} 32. Qa3 {[%emt 0:07:30]} Bf5+ {[%emt 0:30:13]} 33. Kc1 {[%emt 0:07:34]} axb3 {[%emt 0:30:39]} 34. Qe7+ {[%emt 0:07:28]} Kh6 {[%emt 0:31:05]} 35. Rd5 {[%emt 0:05:33]} Qc4 {[%emt 0:26:07]} 36. g3 {[%emt 0:00:07]} Qf1+ {[%emt 0:24:00]} 37. Kd2 {[%emt 0:00:36]} Qg2+ {[%emt 0:23:13]} 38. Qe2 {[%emt 0:01:04]} Qxg3 {[%emt 0:23:39]} 39. Rd4 {[%emt 0:00:09]} Qxh3 {[%emt 0:22:29]} 40. Qe7 {[%emt 0:00:01]} Qg2+ {[%emt 0:21:30]} 41. Qe2 {[%emt 0:28:52]} Qxe2+ {[%emt 0:50:48]} 42. Kxe2 {[%emt 0:28:58]} Kh5 {[%emt 0:46:46]} 43. Nd5 {[%emt 0:47:16]} Ra6 {[%emt 0:46:06]} 44. Ne3 {[%emt 0:46:36]} Ra2 {[%emt 0:45:01]} 45. Rd2 {[%emt 0:26:33]} Be4 {[%emt 0:45:26]} 46. Kf2 {[%emt 0:25:49]} g5 {[%emt 0:42:35]} 47. f5 {[%emt 0:22:44]} g4 {[%emt 0:29:04]} 48. Kg3 {[%emt 0:13:37]} Kg5 {[%emt 0:29:30]} 49. Rd8 {[%emt 0:12:00]} Rxb2 {[%emt 0:17:07]} 50. Rg8+ {[%emt 0:17:37]} Kh5 {[%emt 0:17:34]} 51. Rg7 {[%emt 0:06:14]} Re2 {[%emt 0:11:08]} 52. Rxh7+ {[%emt 0:05:37]} Kg5 {[%emt 0:11:37]} 53. Rg7+ {[%emt 0:04:43]} Kh6 {[%emt 0:12:03]} 54. Rg6+ {[%emt 0:05:08]} Kh7 {[%emt 0:10:29]} 55. Nd1 {[%emt 0:03:12]} b2 {[%emt 0:08:29]} 56. Nxb2 {[%emt 0:03:17]} Rxb2 {[%emt 0:08:57]} 57. Rxf6 {[%emt 0:03:06]} Bf3 {[%emt 0:09:21]} 58. Rd6 {[%emt 0:01:50]} Rb4 {[%emt 0:09:00]} 59. Kh4 {[%emt 0:01:18]} Kg7 {[%emt 0:08:47]} 60. Kg3 {[%emt 0:09:17]} Kf7 {[%emt 0:09:00]} 61. Ra6 {[%emt 0:00:05]} Rb3 {[%emt 0:08:55]} 62. Rh6 {[%emt 0:00:01]} Bd1+ {[%emt 0:08:44]} 63. Kf4 {[%emt 0:00:29]} Rb4+ {[%emt 0:08:03]} 64. Kg3 {[%emt 0:00:51]} Bc2 {[%emt 0:01:21]} 65. f6 {[%emt 0:00:42]} Bg6 {[%emt 0:08:15]} 66. Rh4 {[%emt 0:01:06]} Bf5 {[%emt 0:08:44]} 67. Rh6 {[%emt 0:01:35]} Rb6 {[%emt 0:09:01]} 0-1